Department Family,Entity,Paid Date,Expense Type,Expense Area,Supplier,Transaction No,Amount,Description,Post Code
Department of Health,NHS Business Services Authority,09/09/2022,Civil Service Pension,Statutory Payments,CABINET OFFICE CIVIL SERVICE PENSIONS,0080133103,"48,912.74",CONTRIBUTIONS AUG2022,RG24 9NW
Department of Health,NHS Business Services Authority,21/09/2022,Rent,"Finance, Commercial & Estates",EMERSON MANAGEMENT SERVICES,0080133407,"139,821.00",29.09.2022 RENT,SK9 7LF
Department of Health,NHS Business Services Authority,27/09/2022,Professional Fees,"Finance, Commercial & Estates",AVISON YOUNG (UK) LIMITED,0080133557,"36,540.00",2010 RATING LIST FLEETWOOD,B1 2JB
Department of Health,NHS Business Services Authority,21/09/2022,IBM Exp's Sol - Implementation,Operations,IBM UK LTD,0080133323,"40,031.69",IBM ESR Expense Solutions ,PO6 3AU
Department of Health,NHS Business Services Authority,21/09/2022,IBM - Baseline,Operations,IBM UK LTD,0080133325,"2,088,519.74",IBM ESR Service Charges FY21-25,PO6 3AU
Department of Health,NHS Business Services Authority,13/09/2022,IBM - Pipeline,Operations,IBM UK LTD,0080133379,"69,991.26",IBM ESR Pipeline Charges April 2021 to ,PO6 3AU
Department of Health,NHS Business Services Authority,21/09/2022,IT,NHS Workforce Services,IBM UK LTD,0080133539,"25,027.38",IBM ESR DCT project,PO6 3AU
Department of Health,NHS Business Services Authority,21/09/2022,IT,NHS Workforce Services,IBM UK LTD,0080133541,"117,522.72",IBM ESR DCT project,PO6 3AU
Department of Health,NHS Business Services Authority,21/09/2022,IT,NHS Workforce Services,IBM UK LTD,0080133545,"404,303.90",IBM ESR DCT project,PO6 3AU
Department of Health,NHS Business Services Authority,21/09/2022,IT,NHS Workforce Services,IBM UK LTD,0080133548,"25,027.38",IBM ESR DCT project,PO6 3AU
Department of Health,NHS Business Services Authority,27/09/2022,IT,NHS Workforce Services,IBM UK LTD,0080133781,"5,005.48",IBM ESR DCT project,PO6 3AU
Department of Health,NHS Business Services Authority,27/09/2022,IT,NHS Workforce Services,IBM UK LTD,0080133781,"1,294.20",IBM ESR DCT project,PO6 3AU
Department of Health,NHS Business Services Authority,27/09/2022,IT,NHS Workforce Services,IBM UK LTD,0080133781,"80,860.78",IBM ESR DCT project,PO6 3AU
Department of Health,NHS Business Services Authority,27/09/2022,IT,NHS Workforce Services,IBM UK LTD,0080133782,"2,708.01",IBM ESR DCT project,PO6 3AU
Department of Health,NHS Business Services Authority,27/09/2022,IT,NHS Workforce Services,IBM UK LTD,0080133782,"3,711.28",IBM ESR DCT project,PO6 3AU
Department of Health,NHS Business Services Authority,27/09/2022,IT,NHS Workforce Services,IBM UK LTD,0080133782,390.58,IBM ESR DCT project,PO6 3AU
Department of Health,NHS Business Services Authority,27/09/2022,IT,NHS Workforce Services,IBM UK LTD,0080133782,"22,256.97",IBM ESR DCT project,PO6 3AU
Department of Health,NHS Business Services Authority,30/09/2022,IT,NHS Workforce Services,IBM UK LTD,0080133829,"382,274.41",IBM ESR DCT project,PO6 3AU
Department of Health,NHS Business Services Authority,27/09/2022,IT,NHS Workforce Services,IBM UK LTD,0080133832,"66,302.50",IBM ESR DCT project,PO6 3AU
Department of Health,NHS Business Services Authority,16/09/2022,Hard FM Reactive,"Finance, Commercial & Estates",INTEGRATED HEALTH PROJECTS,0050039346,477.61,NHS BSA P22 MINOR WORKS,HP2 7TR
Department of Health,NHS Business Services Authority,16/09/2022,Minor Works,"Finance, Commercial & Estates",INTEGRATED HEALTH PROJECTS,0050039346,"3,422.32",NHS BSA P22 MINOR WORKS,HP2 7TR
Department of Health,NHS Business Services Authority,16/09/2022,Minor Works,"Finance, Commercial & Estates",INTEGRATED HEALTH PROJECTS,0050039346,"69,248.22",NHS BSA P22 MINOR WORKS,HP2 7TR
Department of Health,NHS Business Services Authority,16/09/2022,Minor Works,"Finance, Commercial & Estates",INTEGRATED HEALTH PROJECTS,0050039346,"74,876.35",NHS BSA P22 MINOR WORKS,HP2 7TR
Department of Health,NHS Business Services Authority,16/09/2022,Minor Works,"Finance, Commercial & Estates",INTEGRATED HEALTH PROJECTS,0050039346,423.36,NHS BSA P22 MINOR WORKS,HP2 7TR
Department of Health,NHS Business Services Authority,16/09/2022,Minor Works,"Finance, Commercial & Estates",INTEGRATED HEALTH PROJECTS,0050039346,216.14,NHS BSA P22 MINOR WORKS,HP2 7TR
Department of Health,NHS Business Services Authority,16/09/2022,Minor Works,"Finance, Commercial & Estates",INTEGRATED HEALTH PROJECTS,0050039346,403.79,NHS BSA P22 MINOR WORKS,HP2 7TR
Department of Health,NHS Business Services Authority,16/09/2022,Minor Works,"Finance, Commercial & Estates",INTEGRATED HEALTH PROJECTS,0050039346,383.23,NHS BSA P22 MINOR WORKS,HP2 7TR
Department of Health,NHS Business Services Authority,16/09/2022,Building Works,"Finance, Commercial & Estates",INTEGRATED HEALTH PROJECTS,0050039346,"3,338.63",NHS BSA P22 MINOR WORKS,HP2 7TR
Department of Health,NHS Business Services Authority,16/09/2022,Building Works,"Finance, Commercial & Estates",INTEGRATED HEALTH PROJECTS,0050039346,"1,791.30",NHS BSA P22 MINOR WORKS,HP2 7TR
Department of Health,NHS Business Services Authority,14/09/2022,Hard FM Reactive,"Finance, Commercial & Estates",INTEGRATED HEALTH PROJECTS,0080133292,477.61,CE 74.16 - Stage 2 BH Cladding ,HP2 7TR
Department of Health,NHS Business Services Authority,14/09/2022,Minor Works,"Finance, Commercial & Estates",INTEGRATED HEALTH PROJECTS,0080133292,"74,876.35",TO.CE-81.12 - Greenfinch LED Lighting - ,HP2 7TR
Department of Health,NHS Business Services Authority,14/09/2022,Minor Works,"Finance, Commercial & Estates",INTEGRATED HEALTH PROJECTS,0080133292,"3,422.32",CE-80.16 - Wall Mounted Controllers for ,HP2 7TR
Department of Health,NHS Business Services Authority,14/09/2022,Minor Works,"Finance, Commercial & Estates",INTEGRATED HEALTH PROJECTS,0080133292,"69,248.23",TO.CE-83.03  BH Server room works Stage ,HP2 7TR
Department of Health,NHS Business Services Authority,14/09/2022,Minor Works,"Finance, Commercial & Estates",INTEGRATED HEALTH PROJECTS,0080133292,403.79,CE-80.2 Relocation of Equipment to ,HP2 7TR
Department of Health,NHS Business Services Authority,14/09/2022,Minor Works,"Finance, Commercial & Estates",INTEGRATED HEALTH PROJECTS,0080133292,423.36,CE 80.10 - Greenfinch Power & Data ,HP2 7TR
Department of Health,NHS Business Services Authority,14/09/2022,Minor Works,"Finance, Commercial & Estates",INTEGRATED HEALTH PROJECTS,0080133292,216.14,CE 80.12 - Stage 2 Greenfinch 1st Floor ,HP2 7TR
Department of Health,NHS Business Services Authority,14/09/2022,Minor Works,"Finance, Commercial & Estates",INTEGRATED HEALTH PROJECTS,0080133292,383.23,MISC,HP2 7TR
Department of Health,NHS Business Services Authority,14/09/2022,Building Works,"Finance, Commercial & Estates",INTEGRATED HEALTH PROJECTS,0080133292,"3,338.63",TO.CE-75.6 HH - Computer Suite Roof ,HP2 7TR
Department of Health,NHS Business Services Authority,14/09/2022,Building Works,"Finance, Commercial & Estates",INTEGRATED HEALTH PROJECTS,0080133292,"1,791.30",`CE 80.8 Greenfinch Way 1st floor BC ,HP2 7TR
Department of Health,NHS Business Services Authority,13/09/2022,Rates Charges,"Finance, Commercial & Estates",NEWCASTLE CITY COUNCIL,0050039325,"28,160.00",RATES SEP2022 STELLA,NE99 2PT
Department of Health,NHS Business Services Authority,16/09/2022,External Staff Costs,NHS Workforce Services,PAYMASTER (1836) LTD,0080133386,"125,000.00",As part of the NHS Pensions McCloud ,RH10 1UH
Department of Health,NHS Business Services Authority,02/09/2022,Postage Charges,Operations,ROYAL MAIL,0080133080,"53,614.55",A/C 0912819049,S49 1HQ
Department of Health,NHS Business Services Authority,02/09/2022,Postage Charges,Operations,ROYAL MAIL,0080133081,"20,879.82",A/C 0912819048,S49 1HQ
Department of Health,NHS Business Services Authority,13/09/2022,Postage Charges,Operations,ROYAL MAIL,0080133167,"48,705.59",A/C 0912819049,S49 1HQ
Department of Health,NHS Business Services Authority,13/09/2022,Postage Charges,Operations,ROYAL MAIL,0080133265,"35,213.86",A/C 0912819049,S49 1HQ
Department of Health,NHS Business Services Authority,16/09/2022,Postage Charges,Operations,ROYAL MAIL,0080133341,"5,659.63",A/C 0006456045,S49 1HQ
Department of Health,NHS Business Services Authority,16/09/2022,Postage Charges,Operations,ROYAL MAIL,0080133341,"4,275.32",A/C 0006456045,S49 1HQ
Department of Health,NHS Business Services Authority,16/09/2022,Postage Charges,Operations,ROYAL MAIL,0080133341,"19,369.72",A/C 0006456045,S49 1HQ
Department of Health,NHS Business Services Authority,27/09/2022,Postage Charges,Operations,ROYAL MAIL,0080133582,3.50,A/C 0912819049,S49 1HQ
Department of Health,NHS Business Services Authority,27/09/2022,Postage Charges,Operations,ROYAL MAIL,0080133582,"57,094.98",A/C 0912819049,S49 1HQ
Department of Health,NHS Business Services Authority,27/09/2022,Postage Charges,Operations,ROYAL MAIL,0080133734,"32,015.50",A/C 0912819049,S49 1HQ
Department of Health,NHS Business Services Authority,09/09/2022,Cloud Storage,"Digital, Data & Technology",TRUSTMARQUE SOLUTIONS LTD,0050039314,"25,824.96",A/C 114494 LICENCE,YO41 1LZ
Department of Health,NHS Business Services Authority,13/09/2022,Cloud Storage,"Digital, Data & Technology",TRUSTMARQUE SOLUTIONS LTD,0050039316,"25,824.96",A/C 114494 LICENSE,YO41 1LZ
Department of Health,NHS Business Services Authority,16/09/2022,PC Purchases,"Digital, Data & Technology",TRUSTMARQUE SOLUTIONS LTD,0080133342,"7,370.50",Part No.  DFG-00005   -  ,YO41 1LZ
Department of Health,NHS Business Services Authority,16/09/2022,Software Licences,"Digital, Data & Technology",TRUSTMARQUE SOLUTIONS LTD,0080133342,"53,699.33",Part No.  DFG-00005   -  ,YO41 1LZ
Department of Health,NHS Business Services Authority,16/09/2022,Software Licences,"Digital, Data & Technology",TRUSTMARQUE SOLUTIONS LTD,0080133342,"4,777.78",DJH-00001 MicrosoftDyn365ECstEngAddlPort,YO41 1LZ
Department of Health,NHS Business Services Authority,16/09/2022,Software Licences,"Digital, Data & Technology",TRUSTMARQUE SOLUTIONS LTD,0080133342,"10,529.28",Part No.  DFG-00005   -  ,YO41 1LZ
Department of Health,NHS Business Services Authority,16/09/2022,Software Licences,"Digital, Data & Technology",TRUSTMARQUE SOLUTIONS LTD,0080133342,"10,002.82",Part No.  DFG-00005   -  ,YO41 1LZ
Department of Health,NHS Business Services Authority,16/09/2022,Software Licences,Operations,TRUSTMARQUE SOLUTIONS LTD,0080133342,"425,382.91",Part No.  DFG-00005   -  ,YO41 1LZ
Department of Health,NHS Business Services Authority,16/09/2022,Software Licences,Operations,TRUSTMARQUE SOLUTIONS LTD,0080133342,"107,925.12",Part No.  DFG-00005   -  ,YO41 1LZ
Department of Health,NHS Business Services Authority,16/09/2022,Software Licences,Operations,TRUSTMARQUE SOLUTIONS LTD,0080133342,"16,846.85",Part No.  DFG-00005   -  ,YO41 1LZ
Department of Health,NHS Business Services Authority,16/09/2022,Software Licences,Citizen Services,TRUSTMARQUE SOLUTIONS LTD,0080133342,"26,849.64",Part No.  DFG-00005   -  ,YO41 1LZ
Department of Health,NHS Business Services Authority,16/09/2022,Software Licences,Primary Care Services,TRUSTMARQUE SOLUTIONS LTD,0080133342,"5,264.64",Part No.  DFG-00005   -  ,YO41 1LZ
Department of Health,NHS Business Services Authority,16/09/2022,Technology Developmnt Recharge,Primary Care Services,TRUSTMARQUE SOLUTIONS LTD,0080133342,"106,345.73",Part No.  DFG-00005   -  ,YO41 1LZ
Department of Health,NHS Business Services Authority,16/09/2022,Software Licences,COVID 19,TRUSTMARQUE SOLUTIONS LTD,0080133342,"4,777.78",Part No. DJH-00001  - ,YO41 1LZ
Department of Health,NHS Business Services Authority,09/09/2022,Cloud Storage,"Digital, Data & Technology",TRUSTMARQUE SOLUTIONS LTD,0080133374,"21,072.23",Part No.  CSP-COM   -  CSP Commit NCE ,YO41 1LZ
Department of Health,NHS Business Services Authority,09/09/2022,Cloud Storage,"Digital, Data & Technology",TRUSTMARQUE SOLUTIONS LTD,0080133374,"1,944.00",Part No. CSP-COM  -  CSP Commit NCE P1M ,YO41 1LZ
Department of Health,NHS Business Services Authority,09/09/2022,Cloud Storage,"Digital, Data & Technology",TRUSTMARQUE SOLUTIONS LTD,0080133374,"2,808.72",Part No.  CSP-COM  -  CSP Commit NCE ,YO41 1LZ
Department of Health,NHS Business Services Authority,13/09/2022,NHS Pension Add Ers Cont,Statutory Payments,NHS PENSIONS ,0080133246,"501,028.00",ERS2518  SEPTEMBER 22,FY7 8LG
Department of Health,NHS Business Services Authority,21/09/2022,Apprenticeship Levy,People & Corporate Services,HM REVENUE & CUSTOMS 948PX00194660,0050039364,"45,722.00",LEVY,NE98 1ZZ
Department of Health,NHS Business Services Authority,21/09/2022,Income Tax,Statutory Payments,HM REVENUE & CUSTOMS 948PX00194660,0050039364,"855,014.71",948PX00194660-AUG22,NE98 1ZZ
Department of Health,NHS Business Services Authority,21/09/2022,National Insurance,Statutory Payments,HM REVENUE & CUSTOMS 948PX00194660,0050039364,"579,138.61",948PX00194660/AUG22,NE98 1ZZ
Department of Health,NHS Business Services Authority,21/09/2022,National Insurance,Statutory Payments,HM REVENUE & CUSTOMS 948PX00194660,0050039364,"848,933.98",948PX00194660/AUG22,NE98 1ZZ
Department of Health,NHS Business Services Authority,21/09/2022,Student Loan,Statutory Payments,HM REVENUE & CUSTOMS 948PX00194660,0050039364,"35,809.00",948PX00194660/AUG22,NE98 1ZZ
Department of Health,NHS Business Services Authority,21/09/2022,SMP,Statutory Payments,HM REVENUE & CUSTOMS 948PX00194660,0050039364,"-59,388.17",SMP,NE98 1ZZ
Department of Health,NHS Business Services Authority,21/09/2022,SPP,Statutory Payments,HM REVENUE & CUSTOMS 948PX00194660,0050039364,-576.52,SPP,NE98 1ZZ
Department of Health,NHS Business Services Authority,13/09/2022,Electricity,"Finance, Commercial & Estates",EDF ENERGY ,0050039319,"25,491.82",A/C 1376210000,PL3 5XQ 
Department of Health,NHS Business Services Authority,23/09/2022,External Staff Costs,NHS Workforce Services,ACUITY BUSINESS SOLUTIONS LTD,0080133609,"60,195.00",McCloud Consultancy for NHS Pensions ,EX2 8LB
Department of Health,NHS Business Services Authority,27/09/2022,Methods Contract,Operations,METHODS BUSINESS & DIGITAL TECH LTD,0080133610,"164,430.00",Provision of NHS Jobs website and ,EC1N 8TS
Department of Health,NHS Business Services Authority,13/09/2022,Printing Charges (External),Operations,XEROX UK LIMITED,0080133303,"67,696.80","Xerox UK Ltd - Production, ",WF2 0XF
Department of Health,NHS Business Services Authority,21/09/2022,Printing Charges (External),Operations,XEROX UK LIMITED,0080133453,941.88,Non Stationery - Xerox UK Ltd,WF2 0XF
Department of Health,NHS Business Services Authority,21/09/2022,Printing Charges (External),Operations,XEROX UK LIMITED,0080133453,"35,387.11",Non Stationery - Xerox UK Ltd,WF2 0XF
Department of Health,NHS Business Services Authority,30/09/2022,Professional Fees,Citizen Services,XEROX UK LIMITED,0080133512,"310,539.08",Healthy Start Prepaid Cards & Financial ,WF2 0XF
Department of Health,NHS Business Services Authority,15/09/2022,Software Licences,"Digital, Data & Technology",ATLASSIAN PTY LTD,0080133530,"23,323.37",Confluence (Cloud) Standard 800 Users ,
Department of Health,NHS Business Services Authority,15/09/2022,Software Tools Maintenance,"Digital, Data & Technology",ATLASSIAN PTY LTD,0080133530,"48,600.00",Jira Software (Cloud) Standard 800 ,
Department of Health,NHS Business Services Authority,27/09/2022,Bank Charges,Operations,ALLPAY LIMITED,0080133474,"46,134.35",PPCL AUG 22,HR1 3SE
Department of Health,NHS Business Services Authority,16/09/2022,Claybrook IT App Support,Operations,CLAYBROOK COMPUTING LTD,0080133383,"190,140.25",Monthly standard product support and ,RH10 1UH
Department of Health,NHS Business Services Authority,23/09/2022,Claybrook IT App Support,NHS Workforce Services,CLAYBROOK COMPUTING LTD,0080133384,"33,584.00",One-months support and maintenance ,RH10 1UH
Department of Health,NHS Business Services Authority,16/09/2022,Claybrook IT App Support,NHS Workforce Services,CLAYBROOK COMPUTING LTD,0080133385,"33,584.00",One-months support and maintenance ,RH10 1UH
Department of Health,NHS Business Services Authority,16/09/2022,External Staff Costs,NHS Workforce Services,CLAYBROOK COMPUTING LTD,0080133388,"80,334.00",Compendia Refund Enhancements provided ,RH10 1UH
Department of Health,NHS Business Services Authority,16/09/2022,External Staff Costs,NHS Workforce Services,DIFRENT LTD,0080133457,"8,969.00",C99309 - NHS JOBS CAPABILITY - SOW005,WC2R 0EX
Department of Health,NHS Business Services Authority,16/09/2022,External Staff Costs,NHS Workforce Services,DIFRENT LTD,0080133457,"111,025.00",C99309 SOW005 CCN02  NHS Jobs ,WC2R 0EX
Department of Health,NHS Business Services Authority,27/09/2022,Agency & Interim Staff,NHS Workforce Services,DIFRENT LTD,0080133740,"59,790.50",B98040 SOW011 NHS Volunteering Alpha - ,WC2R 0EX
Department of Health,NHS Business Services Authority,27/09/2022,Agency & Interim Staff,NHS Workforce Services,DIFRENT LTD,0080133741,"23,567.00",B98040 - SOW007 - NHS JOBS - NHS ,WC2R 0EX
Department of Health,NHS Business Services Authority,13/09/2022,Rent,Operations,CROWN HOSTING DATA CENTRES LTD,0080133333,"32,277.95","SRF001 - Rent, Power Charges & ",SN13 9GB
Department of Health,NHS Business Services Authority,13/09/2022,Electricity,Operations,CROWN HOSTING DATA CENTRES LTD,0080133333,"5,976.05","SRF001 - Rent, Power Charges & ",SN13 9GB
Department of Health,NHS Business Services Authority,13/09/2022,Rent,Operations,CROWN HOSTING DATA CENTRES LTD,0080133335,"39,531.25","SRF001 - Rent, Power Charges & ",SN13 9GB
Department of Health,NHS Business Services Authority,13/09/2022,Electricity,Operations,CROWN HOSTING DATA CENTRES LTD,0080133335,"7,318.94","SRF001 - Rent, Power Charges & ",SN13 9GB
Department of Health,NHS Business Services Authority,16/09/2022,Rent,Operations,CROWN HOSTING DATA CENTRES LTD,0080133425,"32,470.18","SRF001 - Rent, Power Charges & ",SN13 9GB
Department of Health,NHS Business Services Authority,16/09/2022,Electricity,Operations,CROWN HOSTING DATA CENTRES LTD,0080133425,"6,011.64","SRF001 - Rent, Power Charges & ",SN13 9GB
Department of Health,NHS Business Services Authority,21/09/2022,Rent,Operations,CROWN HOSTING DATA CENTRES LTD,0080133505,"39,542.22","SRF001 - Rent, Power Charges & ",SN13 9GB
Department of Health,NHS Business Services Authority,21/09/2022,Electricity,Operations,CROWN HOSTING DATA CENTRES LTD,0080133505,"7,320.97","SRF001 - Rent, Power Charges & ",SN13 9GB
Department of Health,NHS Business Services Authority,09/09/2022,Professional Fees,Citizen Services,MASTEK UK LTD,0080133022,"17,430.00",B98042(Revenue) SOW082 - England ,RG1 8BW
Department of Health,NHS Business Services Authority,09/09/2022,External Project Support,Citizen Services,MASTEK UK LTD,0080133022,"40,350.00",B99246(Capital) SOW082 - England ,RG1 8BW
Department of Health,NHS Business Services Authority,23/09/2022,Professional Fees,Digital & Data,MASTEK UK LTD,0080133313,"14,050.00",B98022 (Revenue) CCN02 SOW007�Cost ,RG1 8BW
Department of Health,NHS Business Services Authority,23/09/2022,External Project Support,Digital & Data,MASTEK UK LTD,0080133313,"45,425.00",B99209 (Capital) CCN02 SOW007�Cost ,RG1 8BW
Department of Health,NHS Business Services Authority,23/09/2022,Subsistence,"Digital, Data & Technology",MASTEK UK LTD,0080133314,"40,925.00",B08013 SOW001 - Primary Care ,RG1 8BW
Department of Health,NHS Business Services Authority,23/09/2022,Professional Fees,Citizen Services,MASTEK UK LTD,0080133315,"7,000.00",B98033 SOW084 �IHS Completion of the ,RG1 8BW
Department of Health,NHS Business Services Authority,23/09/2022,External Project Support,Citizen Services,MASTEK UK LTD,0080133315,"22,105.00",B99231 SOW084 �IHS Completion of the ,RG1 8BW
Department of Health,NHS Business Services Authority,21/09/2022,Professional Fees,Citizen Services,MASTEK UK LTD,0080133617,"26,460.00",B98045 (revenue) & B99248 (capital),RG1 8BW
Department of Health,NHS Business Services Authority,21/09/2022,External Project Support,Citizen Services,MASTEK UK LTD,0080133617,"17,570.00",B99248 (capital) & B98045 (revenue),RG1 8BW
Department of Health,NHS Business Services Authority,09/09/2022,Agency Fees,Operations,ALEXANDER MANN SOLUTIONS,0080133152,"76,701.91",TEMP STAFF,
Department of Health,NHS Business Services Authority,09/09/2022,Agency Fees,Operations,ALEXANDER MANN SOLUTIONS,0080133212,"167,919.08",TEMP STAFF,
Department of Health,NHS Business Services Authority,16/09/2022,Temporary Staff,Operations,ALEXANDER MANN SOLUTIONS,0080133365,"53,380.00",TEMP STAFF,
Department of Health,NHS Business Services Authority,23/09/2022,Temporary Staff,Operations,ALEXANDER MANN SOLUTIONS,0080133642,"81,591.19",TEMP STAFF,
Department of Health,NHS Business Services Authority,30/09/2022,Temporary Staff,Operations,ALEXANDER MANN SOLUTIONS,0080133814,"138,356.30",TEMP STAFF,
Department of Health,NHS Business Services Authority,21/09/2022,Cloud Storage,"Digital, Data & Technology",AGILISYS LIMITED,0080133540,"151,852.75",Cloud Brokerage Services for July - ,W12 7RZ
Department of Health,NHS Business Services Authority,30/09/2022,Software Licences,Operations,INDESSER,0080133923,"45,900.00",EHIC PSG LICENCE FEE AUG 2022,LS1 4AP
Department of Health,NHS Business Services Authority,16/09/2022,Professional Fees,Operations,TISSKI LIMITED,0080133418,"33,750.00",This SOW is being called off against ,CV8 2LG
Department of Health,NHS Business Services Authority,02/09/2022,Software Licences,Operations,AMIQUS RESOLUTION LIMITED,0080132690,"36,000.00",ENTERPRISE LICENCE PO COMPLETE,EH12 5HD
Department of Health,NHS Business Services Authority,27/09/2022,Telephony - Core User Profiles,"Digital, Data & Technology",NASSTAR,0080133494,"6,731.34",Video Conferencing Licences,BH17 0RU
Department of Health,NHS Business Services Authority,27/09/2022,Telephony - Core User Profiles,"Digital, Data & Technology",NASSTAR,0080133494,"27,520.50",Annual Service Charges Lot 10 Unified ,BH17 0RU
Department of Health,NHS Business Services Authority,27/09/2022,Telephony - CC Inbound,"Digital, Data & Technology",NASSTAR,0080133494,"2,795.40",Contact Centre Homeworkers,BH17 0RU
Department of Health,NHS Business Services Authority,27/09/2022,Telephony - CC Inbound,"Digital, Data & Technology",NASSTAR,0080133494,"64,386.00",Contact Centre Telephony,BH17 0RU
Department of Health,NHS Business Services Authority,16/09/2022,Cloud Storage,"Digital, Data & Technology",CDW LIMITED,0080133468,"103,819.31",Data Monitoring Service,EC4M 9AF
Department of Health,NHS Business Services Authority,23/09/2022,Professional Fees,Primary Care Services,ZAIZI LTD,0080133615,"121,381.00",SOW Ref: 003 Vaccine Damage Payment ,W6 7JP
Department of Health,NHS Business Services Authority,27/09/2022,Hard FM Contract,"Finance, Commercial & Estates",ROBERTSON FACILITIES MANAGEMENT LTD,0080133770,"421,611.45",Total Facilities Management Planned and ,FK9 4TZ
Department of Health,NHS Business Services Authority,16/09/2022,Professional Fees,Primary Care Services,CRAWFORD & COMPANY ADJUSTERS LTD,0080133428,"203,677.44",The delivery of medical assessments for ,MK9 2AH
Department of Health,NHS Business Services Authority,06/09/2022,Legal Fees General,"Finance, Commercial & Estates",SHED5 LIMITED,0080133149,"71,845.33",Benton Warehouse Delapidation ,EC3M 3BY
Department of Health,NHS Business Services Authority,30/09/2022,Professional Fees,Citizen Services,WIDER PLAN LIMITED,0080133564,"714,370.80",Three-year contract for the provision ,B96 6EW
Department of Health,NHS Business Services Authority,27/09/2022,VIVUP Scheme,Statutory Payments,SME HCI LTD,0080133622,"67,455.90",AUG2022 HOME/ELECTRONICS SCHEME,GU9 1DQ
Department of Health,NHS Business Services Authority,01/09/2022,Pensions Division,NHS Workforce Services,,,"2,527,028.40",Payments to Pensioners,
Department of Health,NHS Business Services Authority,01/09/2022,Dental Contractors,Primary Care Services,,,"167,821,536.00",Payments to Dental Contractors,
Department of Health,NHS Business Services Authority,09/09/2022,Pharmacy Contractors,Primary Care Services,,,"749,206,661.15",Payments to Pharmacy Contractors,
Department of Health,NHS Business Services Authority,01/09/2022,Pharmacy Contractors,Primary Care Services,,,"250,000,000.00",Payments to Pharmacy Contractors,
Department of Health,NHS Business Services Authority,30/09/2022,Pharmacy Contractors,Primary Care Services,,,"134,886,977.78",Payments to Pharmacy Contractors,
Department of Health,NHS Business Services Authority,01/09/2022,Pharmacy Contractors,Primary Care Services,,,"124,694,570.89",Payments to Pharmacy Contractors,
Department of Health,NHS Business Services Authority,30/09/2022,Pharmacy Contractors,Primary Care Services,,,"8,604,369.88",Payments to Pharmacy Contractors,
Department of Health,NHS Business Services Authority,01/09/2022,Pharmacy Contractors,Primary Care Services,,,"2,212,809.53",Payments to Pharmacy Contractors,
Department of Health,NHS Business Services Authority,30/09/2022,Pharmacy Contractors,Primary Care Services,,,"1,807,007.08",Payments to Pharmacy Contractors,
Department of Health,NHS Business Services Authority,14/09/2022,Pharmacy Contractors,Primary Care Services,,,"81,584.19",Payments to Pharmacy Contractors,
Department of Health,NHS Business Services Authority,16/09/2022,Pharmacy Contractors,Primary Care Services,,,"36,072.83",Payments to Pharmacy Contractors,
